bitfinex-derivatives/quotes_ETHF0:USTF0_20251216
["timestamp","ask_amount","ask_price","bid_price","bid_amount"]
[1765859176542,0.00334271,2926.6,2926.5,21.3755]
[1765859176744,0.00334271,2926.6,2926.5,23.8355]
[1765859177542,4.271e-05,2926.6,2926.5,23.8355]
[1765859180245,4.271e-05,2926.6,2926.5,28.27773222]
[1765859180749,4.271e-05,2926.6,2926.5,75.07773222]
[1765859181051,2.60744893,2926.6,2926.5,2.46]
[1765859181248,1.6627,2926.3,2926.2,3.2078]
[1765859183454,1.6627,2926.3,2926.2,4.0281]
[1765859184052,1.6627,2926.3,2926.2,0.8203]
[1765859184853,1.6627,2926.3,2925.6,3.2078]
[1765859184854,1.6627,2925.4,2924.7,3.2078]
[1765859185151,3.2078,2925.2,2924.5,0.4961]
[1765859185356,3.2078,2925.2,2924.6,1.01258046]
[1765859185949,3.21292636,2925.2,2924.6,1.01770682]
[1765859186856,3.21292636,2925.2,2924.6,2.51770682]
[1765859187051,3.21292636,2925.2,2924.6,1.14770682]
[1765859187859,3.21292636,2925.2,2924.6,18.52570682]
[1765859188358,3.21292636,2925.2,2924.6,17.26570682]
[1765859188551,1.66782636,2925.2,2925.1,0.8203]
[1765859188752,1.66782636,2925.2,2925.1,1.6686]
[1765859188955,1.6627,2924.7,2924.6,6.82e-06]
[1765859189250,1.6627,2923.7,2923.6,3.2078]
[1765859189755,3.2078,2923.8,2922.8,3.2078]
[1765859190059,3.2078,2923.5,2923.1,0.00512636]
[1765859192258,3.2078,2923.5,2923.4,1.7227]
[1765859192762,3.2078,2923.5,2923.2,16.027]
[1765859195955,0.1468,2922.6,2922.5,0.4961]
[1765859196157,3.3546,2922.6,2922.5,1.4193]
[1765859196351,3.3546,2922.6,2922.5,2.3217]
[1765859197161,3.3546,2922.6,2922.5,2.32587772]
[1765859197560,3.3546,2922.6,2922.5,0.50027772]
[1765859197768,3.5622,2922.6,2922.5,0.50027772]
[1765859198465,3.2078,2922.6,2922.5,2.32587772]
[1765859198660,3.4053,2922.6,2922.5,1.42347772]
[1765859199352,3.5928,2922.6,2922.5,0.50027772]
[1765859199954,1.0325,2922.4,2922.0,0.4961]
[1765859200163,3.724,2922.1,2922.0,1.4193]
[1765859200458,4.2842,2922.1,2922.0,0.4961]
[1765859200663,0.5162,2922.1,2922.0,5.1017]
[1765859200866,0.5162,2922.1,2922.0,5.10449277]
[1765859201162,3.2078,2922.4,2922.0,5.10449277]
[1765859201557,3.768,2922.4,2922.3,0.9232]
[1765859201954,3.768,2922.4,2922.3,1.8256]
[1765859202558,4.3079,2922.4,2922.0,0.49889277]
[1765859202865,4.3079,2922.4,2922.0,3.05889277]
[1765859203763,1.0697,2922.1,2922.0,3.05889277]
[1765859203965,1.0697,2922.1,2922.0,3.98209277]
[1765859204160,0.5399,2922.1,2922.0,3.98209277]
[1765859204756,3.2078,2922.4,2922.0,4.88449277]
[1765859205270,3.7275,2922.4,2922.3,1.8256]
[1765859205465,3.2078,2922.4,2922.3,1.8256]
[1765859205964,3.7175,2922.4,2922.3,1.8256]
[1765859206359,3.2078,2922.4,2922.3,1.8256]
[1765859206560,3.2078,2922.4,2922.3,4.2256]
[1765859206758,3.2078,2922.7,2922.6,1.8256]
[1765859207659,3.2078,2922.7,2922.6,4.4256]
[1765859208760,3.2078,2922.7,2922.6,1.8256]
[1765859209163,3.7075,2922.7,2922.6,1.8256]
[1765859210667,0.4601,2922.6,2922.5,17.5689]
[1765859210867,0.9202,2922.6,2922.5,17.5689]
[1765859211069,0.9202,2922.6,2922.5,16.6457]
[1765859211360,3.2078,2922.7,2922.6,1.8256]
[1765859211565,3.658,2923.3,2923.2,1.8256]
[1765859211865,3.2078,2923.3,2923.2,1.8256]
[1765859212071,3.2078,2923.3,2923.2,17.4806]
[1765859212459,3.21292636,2923.7,2923.6,1.8256]
[1765859212772,3.21292636,2923.7,2923.6,4.5256]
[1765859213070,0.00512636,2923.7,2923.6,7.7334]
[1765859213864,0.00512636,2923.7,2923.6,4.5256]
[1765859214071,0.91562636,2923.7,2923.6,4.5256]
[1765859215273,0.00512636,2923.7,2923.6,4.5256]
[1765859215475,0.91562636,2923.7,2923.6,4.5256]
[1765859215862,1.86472636,2923.7,2923.6,4.5256]
[1765859216068,0.91562636,2923.7,2923.6,4.5256]
[1765859216471,1.86472636,2923.7,2923.6,2.7]
[1765859216871,1.86472636,2923.7,2923.6,3.6232]
[1765859217070,1.86472636,2923.7,2923.6,4.5256]
[1765859217573,0.91562636,2923.7,2923.6,4.5256]
[1765859217969,1.86472636,2923.7,2923.6,2.7]
[1765859218276,1.86472636,2923.7,2923.6,3.6232]
[1765859218471,1.86472636,2923.7,2923.6,4.5256]
[1765859221470,0.00512636,2923.7,2923.6,4.5256]
[1765859222878,0.91562636,2923.7,2923.6,4.5256]
[1765859224681,0.91562636,2923.7,2923.6,17.8726]
[1765859224981,1.97282636,2923.7,2923.6,17.8726]
[1765859225373,0.91562636,2923.7,2923.6,17.8726]
[1765859225776,0.91562636,2923.7,2923.6,20.6126]
[1765859226075,0.00512636,2923.7,2923.6,20.6126]
[1765859226677,0.00512636,2923.7,2923.6,20.6106]
[1765859227791,0.00512636,2923.7,2923.6,23.8184]
[1765859228281,0.00406343,2923.8,2923.7,2.144]
[1765859228482,0.00406343,2923.8,2923.7,4.434]
[1765859229183,2.14016343,2923.8,2923.7,2.144]
[1765859229381,1.08296343,2923.8,2923.7,18.185]
[1765859229679,0.00406343,2923.8,2923.7,20.595]
[1765859230675,1.08296343,2923.8,2923.7,20.595]
[1765859231281,0.00406343,2923.8,2923.7,20.595]
[1765859231980,6.00406343,2923.8,2923.6,3.2078]
[1765859232173,6.00406343,2923.8,2923.4,0.00512636]
[1765859232174,2.7743,2923.5,2923.4,2.636e-05]
[1765859235284,2.7743,2923.5,2923.4,1.10782636]
[1765859236384,2.7743,2923.5,2923.4,2.636e-05]
[1765859236684,1.6954,2923.5,2923.4,2.636e-05]
[1765859237376,0.6382,2923.5,2923.4,2.636e-05]
[1765859239582,1.0789,2923.5,2923.4,2.14402636]
[1765859240085,2.1361,2923.5,2923.4,2.14402636]
[1765859240687,3.2078,2923.7,2923.6,2.144]
[1765859242083,3.2078,2923.7,2923.6,4.934]
[1765859242589,0.00406343,2923.8,2923.7,2.144]
[1765859243288,0.00406343,2923.8,2923.7,4.954]
[1765859243693,2.97135293,2924.0,2923.9,2.144]
[1765859244784,2.97378803,2924.0,2923.9,2.144]
[1765859244981,2.97378803,2924.0,2923.9,1.1078]
[1765859245182,2.1361,2923.6,2923.5,2.144]
[1765859245382,1.0789,2923.6,2923.5,2.144]
[1765859246385,2.1361,2923.6,2923.4,2.636e-05]
[1765859246580,3.61198803,2924.0,2923.4,2.636e-05]
[1765859246581,2.7743,2923.5,2923.4,2.14402636]
[1765859246785,2.1361,2923.5,2923.4,2.14402636]
[1765859246981,1.0789,2923.5,2923.4,2.14402636]
[1765859247591,3.61198803,2924.0,2923.4,2.14402636]
[1765859247785,1.0789,2923.5,2923.4,2.14402636]
[1765859249080,1.0789,2923.7,2923.6,2.144]
[1765859249284,3.8484351,2924.0,2923.6,2.144]
[1765859250390,5.9845351,2924.0,2923.9,1.1078]
[1765859250590,5.9845351,2924.0,2923.9,2.144]
[1765859250787,5.9845351,2924.0,2923.5,0.5807]
[1765859250990,5.9845351,2924.0,2923.5,3.3107]
[1765859251291,2.1361,2923.6,2923.5,4.874]
[1765859251793,2.1361,2923.6,2923.5,1.1078]
[1765859252195,0.5649,2923.5,2923.4,2.636e-05]
[1765859253393,0.9716,2923.5,2923.4,1.98692636]
[1765859254096,3.8484351,2924.0,2923.4,1.98692636]
[1765859254492,0.9716,2923.5,2923.4,1.98692636]
[1765859255290,1.9538,2923.5,2923.4,1.98692636]
[1765859256700,0.9716,2923.5,2923.4,1.98692636]
[1765859257504,3.8484351,2924.0,2923.4,1.98692636]
[1765859258094,4.1818351,2924.0,2923.9,1.9869]
[1765859258492,5.1640351,2924.0,2923.9,1.9869]
[1765859263000,5.7289351,2924.0,2923.9,1.9869]
[1765859263206,5.7289351,2924.0,2923.9,0.9858]
[1765859263809,2.5211351,2924.0,2923.9,0.9858]
[1765859264106,5.7289351,2924.0,2923.9,0.9858]
[1765859265105,5.7289351,2924.0,2923.9,1.9869]
[1765859267804,0.17108,2923.2,2922.5,0.5728]
[1765859268008,3.2078,2922.6,2922.5,2.5597]
[1765859268303,3.2078,2922.6,2922.5,1.5586]
[1765859268604,3.2078,2922.6,2922.5,0.5728]
[1765859269303,3.2078,2922.6,2922.5,2.5597]
[1765859272302,3.2078,2922.6,2922.3,2.636e-05]
[1765859272506,3.2078,2922.6,2922.5,0.5728]
[1765859276410,3.2078,2922.6,2922.5,2.5597]
[1765859277013,3.2078,2922.6,2922.5,1.5586]
[1765859279308,3.2078,2922.6,2922.5,2.5597]
[1765859286814,3.2078,2922.6,2922.3,2.636e-05]
[1765859287209,0.17112,2922.4,2922.3,2.636e-05]
[1765859292618,6.17112,2922.4,2922.3,2.636e-05]
[1765859294924,0.17112,2922.4,2922.3,2.636e-05]
[1765859295223,6.17112,2922.4,2922.3,2.636e-05]
[1765859298725,0.17112,2922.4,2922.3,2.636e-05]
[1765859301433,1.71793962,2922.4,2922.3,2.636e-05]
[1765859301834,3.26475924,2922.4,2922.3,2.636e-05]
[1765859302134,0.17113,2922.3,2922.0,0.72209277]
[1765859302434,3.2078,2922.1,2922.0,0.72209277]
[1765859303433,4.75461962,2922.1,2922.0,0.72209277]
[1765859304230,4.75461962,2922.1,2920.8,1.54681962]
[1765859304231,7.29020651,2922.1,2920.5,0.7193]
[1765859304430,4.75461962,2920.6,2920.5,1.9024]
[1765859304627,6.30143924,2920.6,2920.5,0.7193]
[1765859304933,4.75461962,2920.6,2920.0,0.7193]
[1765859305127,4.75461962,2920.1,2920.0,0.72881639]
[1765859305323,3.2078,2920.1,2920.0,0.72881639]
[1765859306328,0.1713,2919.5,2918.0,3.9271]
[1765859306534,0.17125,2920.2,2919.1,2.3877]
[1765859306731,3.2078,2919.2,2919.1,2.3877]
[1765859307434,3.2078,2919.2,2919.1,1.18704903]
[1765859307838,3.2078,2919.2,2919.1,2.39164903]
[1765859308037,3.2078,2919.2,2919.1,1.18704903]
[1765859308233,3.2078,2919.2,2919.1,0.00394903]
[1765859308439,3.2078,2919.2,2919.1,4.903e-05]
[1765859308737,3.2078,2918.8,2918.0,0.7193]
[1765859308933,3.2078,2918.1,2918.0,0.7193]
[1765859309232,3.2078,2917.8,2917.0,0.7193]
[1765859309830,3.21142405,2917.8,2917.5,0.72188287]
[1765859310534,3.21142405,2917.8,2917.7,2.3877]
[1765859311838,2.49212405,2917.8,2917.7,8.9777]
[1765859312140,3.2078,2918.1,2918.0,3.4241]
[1765859312439,3.2078,2918.7,2918.6,2.8022]
[1765859312834,3.2078,2919.3,2918.6,6.01]
[1765859313038,3.21216092,2919.3,2918.6,8.71]
[1765859313240,3.21216092,2919.3,2918.6,6.01]
[1765859313633,3.21216092,2919.3,2918.6,8.68]
[1765859314336,3.21216092,2919.3,2918.8,3.2078]
[1765859314538,3.21216092,2919.3,2918.6,6.01]
[1765859314836,3.21216092,2919.3,2918.6,5.3122]
[1765859315736,0.00436092,2919.3,2918.8,3.2078]
[1765859316041,3.21216092,2919.3,2918.5,44.861]
[1765859316239,3.21216092,2919.3,2918.5,47.471]
[1765859316740,3.21216092,2919.3,2918.5,44.861]
[1765859317140,3.21216092,2919.3,2918.5,4.061]
[1765859317640,3.21216092,2919.3,2918.5,6.401]
[1765859317851,3.21216092,2919.3,2918.5,4.071]
[1765859318443,1.25566092,2919.3,2919.2,2.8022]
[1765859318642,5.95466092,2919.3,2918.6,3.2078]
[1765859318940,5.95466092,2919.3,2918.6,5.1478]
[1765859319138,5.95466092,2919.3,2918.6,1.94]
[1765859319336,1.2513,2918.6,2918.5,0.8532]
[1765859319846,1.2513,2918.6,2918.3,3.2078]
[1765859320137,0.00436092,2919.3,2918.3,3.2078]
[1765859320138,2.7425,2918.4,2918.3,3.2078]
[1765859320345,3.2078,2918.6,2918.0,3.6554]
[1765859320643,3.2078,2918.9,2918.0,6.2754]
[1765859320939,3.2078,2918.9,2918.1,3.2078]
[1765859321142,3.2078,2918.9,2918.1,6.0178]
[1765859321336,3.2078,2918.9,2918.1,2.81]
[1765859321639,3.2078,2918.2,2917.8,2.8022]
[1765859321844,4.1112,2918.5,2917.8,2.8022]
[1765859322039,4.1112,2918.5,2917.8,5.3022]
[1765859322241,4.1112,2918.5,2917.8,2.8022]
[1765859322444,3.2078,2918.2,2918.1,1.3548]
[1765859323238,4.4591,2918.2,2918.1,1.3548]
[1765859323546,5.9503,2918.2,2917.5,0.72188287]
[1765859323745,5.9503,2918.2,2917.6,3.2078]
[1765859324348,1.2513,2918.2,2918.1,2.8022]
[1765859324642,3.2078,2918.8,2918.4,2.8022]
[1765859324844,3.2078,2918.8,2918.7,2.8022]
[1765859325751,4.4591,2919.2,2919.1,1.3548]
[1765859325944,5.9503,2919.2,2919.1,1.3548]
[1765859326251,5.9503,2919.2,2918.5,4.061]
[1765859326447,2.7425,2919.2,2919.1,1.3548]
[1765859327643,1.2513,2919.2,2919.1,1.3548]
[1765859328549,1.25566092,2919.3,2919.2,2.8022]
[1765859329049,0.00436092,2919.3,2919.2,2.8022]
[1765859329241,0.00436092,2919.3,2919.2,5.6322]
[1765859329747,0.17126,2920.1,2919.2,5.6322]
[1765859329748,3.2078,2920.1,2920.0,3.6554]
[1765859329944,5.9503,2920.1,2920.0,1.3548]
[1765859330246,2.7425,2920.1,2919.5,0.8532]
[1765859330551,2.7425,2920.1,2920.0,1.3548]
[1765859330748,1.25534055,2920.1,2920.0,2.80488395]
[1765859331051,0.00404055,2920.1,2920.0,3.65808395]
[1765859332246,6.94462149,2920.1,2920.0,0.00268395]
[1765859334250,0.99432149,2920.1,2920.0,3.65808395]
[1765859334552,4.055e-05,2920.1,2920.0,11.96808395]
[1765859337953,1.25134055,2920.1,2920.0,3.65808395]
[1765859338450,4.055e-05,2920.1,2920.0,0.85588395]
[1765859338652,4.055e-05,2920.1,2920.0,3.30588395]
[1765859339048,4.055e-05,2920.1,2920.0,0.85588395]
[1765859339958,4.055e-05,2920.1,2920.0,3.28588395]
[1765859340156,4.055e-05,2920.1,2920.0,0.85588395]
[1765859340457,4.055e-05,2920.1,2920.0,3.27588395]
[1765859341156,4.055e-05,2920.1,2920.0,0.85588395]
[1765859342256,4.055e-05,2920.1,2920.0,3.33588395]
[1765859342452,4.055e-05,2920.1,2920.0,3.40588395]
[1765859345557,1.46974055,2920.1,2920.0,6.38548395]
[1765859345759,4.055e-05,2920.1,2920.0,3.38588395]
[1765859349754,4.055e-05,2920.1,2920.0,16.97488395]
[1765859350157,4.055e-05,2920.1,2920.0,19.44488395]
[1765859350359,4.055e-05,2920.1,2920.0,16.97188395]
[1765859350955,4.055e-05,2920.1,2920.0,0.85588395]
[1765859351154,4.055e-05,2920.1,2920.0,3.85548395]
[1765859351155,1.46974055,2920.1,2920.0,3.85548395]
[1765859351453,12.23454055,2920.1,2920.0,0.00268395]
[1765859351660,3.0267,2919.6,2919.5,1.5397]
[1765859352564,3.0267,2919.6,2919.5,1.54223914]
[1765859354066,3.0267,2919.6,2919.5,0.00253914]
[1765859354267,3.2078,2919.8,2919.0,41.6532]
[1765859354268,3.0267,2919.1,2919.0,2.3929]
[1765859354569,1.4697,2919.1,2919.0,3.852]
[1765859354764,3.0267,2919.1,2919.0,3.852]
[1765859354968,1.4697,2919.1,2919.0,3.852]
[1765859355374,1.4697,2919.1,2919.0,3.85553925]
[1765859357363,0.8589,2919.5,2919.0,3.85553925]
[1765859358062,1.4697,2919.1,2919.0,3.85553925]
[1765859358468,0.8589,2919.5,2919.0,3.85553925]
[1765859358668,0.17129,2919.6,2919.0,3.85553925]
[1765859359071,6.2345,2919.8,2919.7,1.5397]
[1765859359867,6.2345,2919.8,2919.0,0.85593925]
[1765859360767,6.2345,2919.8,2919.0,3.60593925]
[1765859360970,6.2345,2919.8,2919.7,1.5397]
[1765859361666,6.2345,2919.8,2919.0,0.85593925]
[1765859361974,6.2345,2919.8,2919.0,3.24593925]
[1765859364677,6.2345,2919.8,2919.7,2.9996]
[1765859364970,4.6775,2919.8,2919.7,2.9996]
[1765859365663,6.2345,2919.8,2919.7,2.9996]
[1765859366377,4.6775,2919.8,2919.7,2.9996]
[1765859367270,4.0224,2921.5,2920.8,1.5397]
[1765859367470,3.0267,2920.9,2920.8,2.9996]
[1765859367672,1.4697,2920.6,2920.5,6.084]
[1765859368175,1.4697,2920.1,2920.0,8.5197]
[1765859368375,1.64412141,2920.6,2920.5,2.9996]
[1765859368680,1.47289141,2920.6,2920.5,3.852]
[1765859369172,0.00319141,2920.6,2920.5,3.852]
[1765859369768,0.00319141,2920.6,2920.5,7.0598]
[1765859370075,1.47289141,2920.6,2920.5,3.852]
[1765859370974,3.0267,2920.4,2920.3,1.54483602]
[1765859371180,3.0267,2920.4,2920.3,0.00513602]
[1765859373379,3.0296,2920.4,2920.3,1.50013602]
[1765859373576,3.21099141,2920.6,2920.3,1.54763602]
[1765859373779,6.24059141,2920.6,2920.5,3.0375]
[1765859374272,6.24059141,2920.6,2920.5,1.495]
[1765859374477,4.66569141,2920.6,2920.5,3.9422]
[1765859375480,3.21099141,2920.6,2920.5,3.9422]
[1765859376279,6.24059141,2920.6,2920.5,2.3997]
[1765859376781,6.24059141,2920.6,2920.5,1.495]
[1765859377079,1.4547,2920.4,2920.3,3.04263602]
[1765859377882,3.0296,2920.4,2920.3,3.04263602]
[1765859378378,1.4547,2920.4,2920.3,3.04263602]
[1765859378768,3.0296,2920.4,2920.3,3.04263602]
[1765859379174,3.0296,2920.4,2920.3,0.00513602]
[1765859379780,3.0296,2920.4,2920.3,1.50013602]
[1765859379980,3.0296,2920.4,2920.3,3.04263602]
[1765859380784,1.4547,2920.4,2920.3,3.04263602]
[1765859381880,1.45789141,2920.6,2920.5,3.9422]
[1765859382186,0.00319141,2920.6,2920.5,7.15]
[1765859383685,0.00319141,2920.6,2920.5,9.52]
[1765859386181,3.0296,2921.4,2921.3,3.0375]
[1765859386578,1.4547,2921.4,2921.3,3.0375]
[1765859387087,1.45777107,2921.4,2921.3,3.04116015]
[1765859387276,3.03267107,2921.4,2921.3,3.04116015]
[1765859387480,3.03267107,2921.4,2921.3,1.49866015]
[1765859387676,3.03267107,2921.4,2921.3,0.00366015]
[1765859388090,3.0296,2920.7,2920.6,4.7028]
[1765859388288,3.0296,2920.7,2920.6,3.2078]
[1765859388487,3.0296,2920.7,2920.6,4.7028]
[1765859388689,3.0296,2920.7,2920.6,6.2453]
[1765859389082,3.0296,2920.7,2920.6,6.2484549]
[1765859389685,3.0296,2921.1,2921.0,3.0375]
[1765859390891,1.4547,2920.7,2920.6,6.2484549]
[1765859391091,3.0296,2920.7,2920.6,3.0406549]
[1765859391488,1.4547,2920.7,2920.6,3.0406549]
[1765859392191,3.379,2921.2,2920.6,3.0406549]
[1765859392386,1.4547,2920.7,2920.6,3.0406549]
[1765859394787,3.2078,2921.2,2921.1,3.0375]
[1765859395496,4.6625,2921.2,2921.1,3.0375]
[1765859398703,1.4547,2921.2,2921.1,3.0375]
[1765859399300,3.0296,2921.2,2921.1,3.0375]
[1765859400808,3.03267107,2921.4,2921.3,1.495]
[1765859401009,1.4547,2921.1,2921.0,3.9422]
[1765859401211,3.0296,2921.1,2921.0,3.9422]
[1765859401411,3.03267107,2921.4,2921.3,3.0375]
[1765859401910,3.0296,2920.7,2920.6,3.0406549]
[1765859402210,3.0296,2920.7,2920.6,2.8743549]
[1765859402403,4.6524,2920.9,2920.8,1.3665]
[1765859402604,5.991,2920.9,2920.8,2.7427]
[1765859404405,2.7832,2920.7,2920.6,0.0031549]
[1765859404609,3.2078,2920.9,2920.8,2.7427]
[1765859405007,4.6524,2921.2,2921.1,1.3762]
[1765859405310,4.6524,2921.2,2921.1,2.7427]
[1765859405506,5.991,2921.2,2921.1,2.7427]
[1765859405900,4.6524,2921.2,2921.1,2.7427]
[1765859406504,1.44767107,2921.4,2921.3,2.7427]
[1765859406705,1.4446,2921.1,2921.0,3.5301]
[1765859408015,2.7832,2921.1,2921.0,3.5301]
[1765859408315,2.7832,2921.1,2921.0,1.3665]
[1765859408911,2.7832,2921.1,2921.0,2.7427]
[1765859409112,2.7832,2921.1,2921.0,3.5301]
[1765859410210,3.2078,2921.2,2920.6,2.7458549]
[1765859410211,1.4446,2920.7,2920.6,2.7458549]
[1765859410407,3.2078,2921.2,2920.6,2.7458549]
[1765859412114,1.4446,2920.7,2920.6,2.7458549]
[1765859412517,3.2078,2921.2,2920.6,2.7458549]
[1765859413220,2.7832,2920.7,2920.6,2.7458549]
[1765859414117,3.379,2921.2,2920.6,2.7458549]
[1765859415419,1.4446,2920.7,2920.6,2.7458549]
[1765859416328,5.991,2920.9,2920.8,2.7427]
[1765859418425,2.7832,2920.7,2920.6,2.7458549]
[1765859418725,2.7832,2920.7,2920.6,0.0031549]
[1765859420122,1.4446,2920.7,2920.6,1.3696549]
[1765859420325,2.7832,2920.7,2920.6,1.3696549]
[1765859420924,2.7832,2920.7,2920.6,0.0031549]
[1765859423117,2.7832,2920.1,2920.0,2.2189]
[1765859423320,2.7832,2919.7,2919.6,5.9505]
[1765859423523,1.4446,2919.7,2919.6,5.9505]
[1765859423917,2.7832,2919.7,2919.6,2.7427]
[1765859424317,2.7832,2919.7,2919.6,2.74688771]
[1765859424722,1.4446,2919.7,2919.6,2.74688771]
[1765859425423,2.7832,2919.7,2919.6,0.00418771]
[1765859425828,2.7832,2919.7,2919.6,1.37068771]
[1765859426225,2.7832,2919.7,2919.6,0.00418771]
[1765859427724,2.7832,2919.7,2919.6,1.37068771]
[1765859429130,2.7832,2919.7,2919.6,2.74688771]
[1765859430527,3.21293602,2919.9,2919.8,2.7427]
[1765859430528,4.65753602,2919.9,2919.8,2.7427]
[1765859431322,0.00513602,2919.9,2919.8,2.7427]
[1765859431522,0.00513602,2919.9,2919.8,5.1427]
[1765859431926,3.2078,2920.2,2920.1,2.7427]
[1765859432127,3.2078,2921.1,2921.0,1.978]
[1765859432328,3.2078,2921.1,2921.0,3.2333]
[1765859432730,1.2984,2920.8,2920.7,4.4631]
[1765859432926,1.2984,2920.6,2920.5,2.0193]
[1765859433126,1.2984,2920.6,2920.5,3.2333]
[1765859434035,3.21293602,2921.0,2920.5,3.2333]
[1765859434922,1.2984,2920.5,2920.4,40.80513602]
[1765859435233,2.5337,2920.6,2920.5,3.2333]
[1765859435437,1.2984,2920.5,2920.4,2.47443602]
[1765859436726,4.5062,2920.6,2920.5,3.2333]
[1765859437326,3.2078,2920.6,2920.5,3.2333]
[1765859437930,4.51133602,2921.0,2920.9,2.4693]
[1765859438130,3.21293602,2921.0,2920.9,2.4693]
[1765859438629,0.00513602,2921.0,2920.9,5.0993]
[1765859438825,0.00513602,2921.0,2920.9,2.4693]
[1765859440741,0.00513602,2921.0,2920.9,5.2793]
[1765859441036,0.00513602,2921.0,2920.9,2.4693]
[1765859442333,0.00513602,2921.0,2920.9,5.2293]
[1765859442537,0.00513602,2921.0,2920.9,2.4693]
[1765859444935,0.00513602,2921.0,2920.9,4.78987554]
[1765859445136,0.00307107,2921.4,2921.3,2.4693]
[1765859445441,0.00307107,2921.4,2921.3,7.99767554]
[1765859446440,0.00307107,2921.4,2921.3,10.50767554]
[1765859446836,0.00513602,2921.6,2921.5,3.2333]
[1765859447041,3.2078,2922.2,2922.1,2.4693]
[1765859447241,1.49327119,2922.6,2922.0,0.764]
[1765859447242,5.7415,2922.5,2922.4,2.4693]
[1765859448042,5.74453198,2922.5,2922.4,0.00322267]
[1765859448444,5.74453198,2922.5,2922.4,1.25852267]
[1765859450047,5.74453198,2922.5,2922.4,2.47252267]
[1765859450446,5.74453198,2922.5,2922.4,0.00322267]
[1765859450843,5.74453198,2922.5,2922.4,1.25852267]
[1765859451347,5.74453198,2922.5,2922.4,0.00322267]
[1765859451549,6.44873198,2922.5,2922.4,0.00322267]
[1765859451741,2.5337,2921.4,2921.3,3.2078]
[1765859451946,5.7415,2921.4,2921.3,1.2553]
[1765859452153,5.7415,2921.4,2921.3,2.4693]
[1765859452354,1.2984,2921.4,2921.3,2.4693]
[1765859452857,1.2984,2921.4,2921.3,2.47329047]
[1765859454255,2.5337,2921.4,2921.3,0.00399047]
[1765859457856,5.7415,2921.4,2921.3,0.00399047]
[1765859461259,5.7415,2921.4,2921.3,2.47329047]
[1765859461457,5.7415,2921.4,2921.3,4.0201695]
[1765859461756,5.7415,2921.4,2921.3,0.00399047]
[1765859464957,2.3845,2921.2,2921.1,0.00513602]
[1765859465963,2.3845,2921.2,2921.1,2.41487543]
[1765859466566,2.3845,2921.2,2921.1,1.23587543]
[1765859466962,2.3845,2921.2,2921.1,3.96175446]
[1765859467166,1.1724,2921.2,2921.1,3.96175446]
[1765859467559,5.5923,2921.4,2921.3,2.4064]
[1765859468363,5.5923,2921.4,2921.3,3.95327903]
[1765859468563,4.3802,2921.4,2921.3,3.95327903]
[1765859469063,5.5923,2921.4,2921.3,2.4064]
[1765859469268,2.3845,2921.2,2921.1,1.23587543]
[1765859469657,2.3845,2921.2,2921.1,0.00847543]
[1765859470768,1.1724,2921.2,2921.1,2.41487543]
[1765859470967,5.5923,2921.4,2921.3,2.4064]
[1765859471265,5.5923,2921.4,2921.3,3.95327903]
[1765859471863,4.3802,2921.4,2921.3,3.95327903]
[1765859472068,3.2078,2921.4,2921.3,3.95327903]
[1765859472770,5.5923,2921.9,2921.8,1.2274]
[1765859473067,2.3845,2921.9,2921.8,2.4064]
[1765859473265,1.1724,2921.9,2921.8,2.4064]
[1765859473660,7.25801325,2922.2,2922.1,1.2274]
[1765859473865,2.3845,2922.1,2921.5,3.9205]
[1765859474066,2.3845,2921.9,2921.8,1.2274]
[1765859474256,4.3802,2922.2,2922.1,2.4064]
[1765859474462,3.2078,2922.2,2922.1,3.95327903]
[1765859474664,4.3802,2922.2,2922.1,3.95327903]
[1765859475971,5.5923,2922.2,2922.1,3.95327903]
[1765859476362,5.5923,2922.2,2922.1,1.54687903]
[1765859476664,3.2078,2922.2,2921.5,7.87377903]
[1765859476865,2.3845,2921.3,2921.2,3.2078]
[1765859477069,2.3845,2921.2,2921.1,0.00847543]
[1765859477966,2.3845,2921.2,2921.1,1.23587543]
[1765859479276,2.3845,2921.2,2921.1,2.41487543]
[1765859484477,1.1724,2921.2,2921.1,2.41487543]
[1765859484881,3.2078,2921.6,2921.1,2.41487543]
[1765859485379,5.5923,2921.6,2921.5,3.1191]
[1765859485774,5.5923,2921.6,2921.5,1.9401]
[1765859486477,2.3845,2921.2,2921.1,0.00847543]
[1765859488379,2.3845,2920.4,2920.3,5.6142]
[1765859488580,1.1724,2920.4,2920.3,5.7042]
[1765859489177,1.17596968,2920.4,2920.3,5.70692879]
[1765859489377,0.00356968,2920.4,2920.3,5.70692879]
[1765859491977,0.00356968,2920.4,2920.3,5.61692879]
[1765859492178,0.00513602,2920.6,2920.5,2.7559]
[1765859492373,0.00513602,2920.6,2920.5,5.3859]
[1765859493281,0.00889389,2920.6,2920.5,5.3859]
[1765859493689,2.25089,2921.3,2921.2,2.1084]
[1765859494084,2.0797,2921.3,2921.2,2.1084]
[1765859494380,2.1129,2920.4,2920.2,3.2078]
[1765859494581,2.1129,2920.2,2920.1,0.00513602]
[1765859494785,2.1129,2919.6,2919.5,2.795]
[1765859494989,2.1129,2919.6,2919.5,0.04]
[1765859495188,2.1129,2919.4,2919.3,3.2078]
[1765859495386,1.0674,2919.1,2919.0,4.8749]
[1765859495591,1.07087423,2919.1,2919.0,6.58586774]
[1765859495790,2.11637423,2919.1,2919.0,1.01666774]
[1765859496186,1.07087423,2919.1,2919.0,2.73806774]
[1765859496691,0.00347423,2919.1,2919.0,2.73806774]
[1765859497490,1.07087423,2919.1,2919.0,2.73806774]
[1765859498186,2.11637423,2919.1,2918.8,0.00513602]
[1765859498487,3.2078,2918.9,2918.0,2.7354]
[1765859498693,2.1129,2918.1,2918.0,1.6671]
[1765859498880,2.1129,2918.1,2917.7,3.2078]
[1765859499085,1.0674,2917.8,2917.7,5.2318]
[1765859499282,1.0674,2917.8,2917.7,5.23526068]
[1765859499592,1.07253602,2918.0,2917.9,1.014]
[1765859500394,2.11803602,2918.0,2917.9,1.014]
[1765859500595,1.07253602,2918.0,2917.9,1.014]
[1765859501088,1.07253602,2918.0,2917.9,2.0823]
[1765859501287,0.00513602,2918.0,2917.9,4.4823]